Workbook

Sheet Лист1
A1: Школа | C1: МБОУ "Рыбно-Слободская Гимназия№1" | F1: Согласовано: | G1: должность | H1: Директор
A2: Типовое примерное меню приготавливаемых блюд | G2: фамилия | H2: Мугинов И.И.
A3: Возрастная категория | E3: 7-11 лет | G3: дата | H3: 9 | I3: 1 | J3: 2025
H4: день | I4: месяц | J4: год
A5: Неделя | B5: День недели | C5: Прием пищи | D5: Раздел меню | E5: Блюда | F5: Вес блюда, г | G5: Белки | H5: Жиры | I5: Углеводы | J5: Калорийность | K5: № рецептуры | L5: Цена
A6: 1 | B6: 1 | C6: Завтрак | D6: гор.блюдо | E6: Макароны отварные со сливочным маслом/Котлета из птицы с соусом | F6: 250 | G6: =5.47+9.9 -> 15 | H6: =6.37+12.11 -> 18 | I6: =34.34+6.58 -> 41 | J6: =216.57+174.91 -> 391 | K6: 203/294
D7: гор.напиток | E7: Чай с сахаром | F7: 200 | G7: 0 | H7: 0 | I7: 10 | J7: 41 | K7: 376
D8: хлеб | E8: Хлеб пшеничный ,хлеб ржан-пшеничный | F8: 50 | G8: =2.6+1.32 -> 4 | H8: =0.81+0.22 -> 1 | I8: =14.4+8.2 -> 23 | J8: =74.73+40.06 -> 115
D9: закуска | E9: Салат из моркови с яблоками | F9: 60 | G9: 1 | H9: 1 | I9: 6 | J9: 37 | K9: 59
D10: гарнир
D13: итого | F13: =SUM(F6:F12) -> 560 | G13: =SUM(G6:G12) -> 20 | H13: =SUM(H6:H12) -> 20.66 | I13: 79.71 | J13: 584.606 | L13: 69.43
A14: =A6 -> 1 | B14: =B6 -> 1 | C14: Завтрак 2 | D14: фрукты
D17: итого | F17: =SUM(F14:F16) -> 0 | G17: =SUM(G14:G16) -> 0 | H17: 0 | I17: 0 | J17: 0 | L17: =SUM(L14:L22) -> 0
A18: =A6 -> 1 | B18: =B6 -> 1 | C18: Обед | D18: закуска | E18: Салат из свежих огурцов | F18: 60 | G18: 1 | H18: 4 | I18: 1 | J18: 45 | K18: 20
D19: 1 блюдо | E19: Борщ с капустой и картофелем на мкб со сметаной | F19: 250 | G19: 7 | H19: 8 | I19: 18 | J19: 173 | K19: 82
D20: 2 блюдо | E20: Картофельное пюре /Тефтели с соусом с соусом | F20: 250 | G20: =3.8+11 -> 15 | H20: =6.5+8.7 -> 15 | I20: =34.8+29.8 -> 65 | J20: =212.9+241.5 -> 454 | K20: 312/278
D21: гарнир
D22: напиток | E22: Компот из свежих плодов | F22: 200 | G22: 0 | H22: 0 | I22: 19 | J22: 77 | K22: 342
D23: хлеб бел. | E23: Хлеб пшеничный | F23: 20 | G23: 2 | H23: 1 | I23: 10 | J23: 50
D24: хлеб черн. | E24: Хлеб ржан-пшеничный | F24: 20 | G24: 1 | H24: 0 | I24: 8 | J24: 40
D27: итого | F27: =SUM(F18:F26) -> 800 | G27: =SUM(G18:G26) -> 25.64 | H27: 28.16 | I27: 120.91 | J27: 838.76 | L27: 91
A28: =A6 -> 1 | B28: =B6 -> 1 | C28: Полдник | D28: 1 блюдо
D29: напиток
D30: хлеб бел.
D32: итого | F32: =SUM(F28:F31) -> 0 | G32: =SUM(G28:G31) -> 0 | H32: 0 | I32: 0 | J32: 0
A33: =A6 -> 1 | B33: =B6 -> 1 | C33: Ужин | D33: гор.блюдо
D34: гарнир
D35: напиток
D36: хлеб
D39: итого | F39: =SUM(F33:F38) -> 0 | G39: =SUM(G33:G38) -> 0 | H39: 0 | I39: 0 | J39: 0 | L39: =SUM(L33:L41) -> 0
A40: =A6 -> 1 | B40: =B6 -> 1 | C40: Ужин 2 | D40: кисломол.
D41: булочное
D42: напиток
D43: фрукты
D46: итого | F46: =SUM(F40:F45) -> 0 | G46: =SUM(G40:G45) -> 0 | H46: 0 | I46: 0 | J46: 0 | L46: =SUM(L40:L48) -> 0
A47: =A6 -> 1 | B47: =B6 -> 1 | C47: Итого за день: | F47: =F13+F17+F27+F32+F39+F46 -> 1360 | G47: =G13+G17+G27+G32+G39+G46 -> 45.724 | H47: 48.82 | I47: 200.62 | J47: 1423.366 | L47: =SUM(L13,L27,L32) -> 160.43
A48: 1 | B48: 2 | C48: Завтрак | D48: гор.блюдо | E48: жаркое по-домашнему (из говядины) | F48: 200 | G48: 14 | H48: 13 | I48: 47 | J48: 362 | K48: 259
D49: гор.напиток | E49: чай с сахаром и лимоном | F49: 200 | G49: 0 | H49: 0 | I49: 10 | J49: 41 | K49: 377
D50: хлеб | E50: хлеб пшеничный/ржан-пшеничный | F50: =30+20 -> 50 | G50: =2.6+1.32 -> 4 | H50: =0.81+0.22 -> 1 | I50: =8.2+14.4 -> 23 | J50: =74.73+40.06 -> 115
D51: закуска | E51: салат из белокачаной капусты | F51: 60 | G51: 1 | H51: 6 | I51: 6 | J51: 82 | K51: 49
D52: гарнир
D55: итого | F55: =SUM(F48:F54) -> 510 | G55: =SUM(G48:G54) -> 19.35 | H55: =SUM(H48:H54) -> 20.085 | I55: =SUM(I48:I54) -> 85.4 | J55: =SUM(J48:J54) -> 599.3 | L55: 69.43
A56: =A48 -> 1 | B56: =B48 -> 2 | C56: Завтрак 2 | D56: фрукты
D59: итого | F59: =SUM(F56:F58) -> 0 | G59: =SUM(G56:G58) -> 0 | H59: =SUM(H56:H58) -> 0 | I59: =SUM(I56:I58) -> 0 | J59: =SUM(J56:J58) -> 0 | L59: =SUM(L56:L64) -> 0
A60: =A48 -> 1 | B60: =B48 -> 2 | C60: Обед | D60: закуска | E60: Салат из моркови (до 1 марта) /салат из припущенной моркови (после 1 марта) | F60: 60 | G60: 1 | H60: 6 | I60: 5 | J60: 78 | K60: 62
D61: 1 блюдо | E61: Суп картофельный с клецками с курицей и со сметаной | F61: 250 | G61: 6 | H61: 9 | I61: 18 | J61: 183 | K61: 108
D62: 2 блюдо | E62: Рис отварной/Рыба, тушёная в томате с овощами | F62: 270 | G62: =3.7+10.45 -> 14 | H62: =6.3+5.9 -> 12 | I62: =37.2+11 -> 48 | J62: =220.6+138.9 -> 360 | K62: 304/229
D63: гарнир
D64: сладкое
D65: хлеб бел. | E65: Хлеб пшеничный | F65: 40 | G65: 3 | H65: 1 | I65: 19 | J65: 100
D66: хлеб черн. | E66: Хлеб ржано-пшеничный | F66: 20 | G66: 1 | H66: 0 | I66: 8 | J66: 40
D67: 3 блюдо | E67: Компот из сухофруктов | F67: 200 | G67: 0 | H67: 0 | I67: 13 | J67: 51 | K67: 348
D69: итого | F69: =SUM(F60:F68) -> 840 | G69: =SUM(G60:G68) -> 25.64 | H69: =SUM(H60:H68) -> 28.95 | I69: =SUM(I60:I68) -> 111.7 | J69: =SUM(J60:J68) -> 810.2 | L69: 91
A70: =A48 -> 1 | B70: =B48 -> 2 | C70: Полдник | D70: булочное
D71: напиток
D74: итого | F74: =SUM(F70:F73) -> 0 | G74: =SUM(G70:G73) -> 0 | H74: =SUM(H70:H73) -> 0 | I74: =SUM(I70:I73) -> 0 | J74: =SUM(J70:J73) -> 0
A75: =A48 -> 1 | B75: =B48 -> 2 | C75: Ужин | D75: гор.блюдо
D76: гарнир
D77: напиток
D78: хлеб
D81: итого | F81: =SUM(F75:F80) -> 0 | G81: =SUM(G75:G80) -> 0 | H81: =SUM(H75:H80) -> 0 | I81: =SUM(I75:I80) -> 0 | J81: =SUM(J75:J80) -> 0 | L81: =SUM(L75:L83) -> 0
A82: =A48 -> 1 | B82: =B48 -> 2 | C82: Ужин 2 | D82: кисломол.
D83: булочное
D84: напиток
D85: фрукты
D88: итого | F88: =SUM(F82:F87) -> 0 | G88: =SUM(G82:G87) -> 0 | H88: =SUM(H82:H87) -> 0 | I88: =SUM(I82:I87) -> 0 | J88: =SUM(J82:J87) -> 0 | L88: =SUM(L82:L90) -> 0
A89: =A48 -> 1 | B89: =B48 -> 2 | C89: Итого за день: | F89: =F55+F59+F69+F74+F81+F88 -> 1350 | G89: =G55+G59+G69+G74+G81+G88 -> 44.99 | H89: =H55+H59+H69+H74+H81+H88 -> 49.035 | I89: =I55+I59+I69+I74+I81+I88 -> 197.1 | J89: =J55+J59+J69+J74+J81+J88 -> 1409.5 | L89: =SUM(L55,L69,L74) -> 160.43
A90: 1 | B90: 3 | C90: Завтрак | D90: гор.блюдо | E90: каша гречневая рассыпчатая/Птица, тушёная в сметанном соусе | F90: 250 | G90: =6.9+7.1 -> 14.00 | H90: =7.6+5.6 -> 13.20 | I90: =33.6+3.17 -> 36.77 | J90: =230.3+91.48 -> 321.78 | K90: 302/290
D91: гор.напиток | E91: чай с сахаром и яблоками | F91: 200 | G91: 0.2 | H91: 0.1 | I91: 11.0 | J91: 45.8 | K91: 377
D92: хлеб | E92: хлеб пшеничный/ржан-пшеничный | F92: =40+20 -> 60 | G92: =3.28+1.32 -> 5 | H92: =1.08+0.22 -> 1 | I92: =19.2+8.2 -> 27 | J92: =99.64+40.06 -> 140
D93: закуска | E93: Винегрет овощной | F93: 60 | G93: 0.86 | H93: 6.10 | I93: 5.84 | J93: 81.80 | K93: 67
D94: гарнир
D97: итого | F97: =SUM(F90:F96) -> 570 | G97: =SUM(G90:G96) -> 19.7 | H97: =SUM(H90:H96) -> 20.69 | I97: =SUM(I90:I96) -> 81.01 | J97: =SUM(J90:J96) -> 589.05 | L97: 69.43
A98: =A90 -> 1 | B98: =B90 -> 3 | C98: Завтрак 2 | D98: фрукты
D101: итого | F101: =SUM(F98:F100) -> 0 | G101: =SUM(G98:G100) -> 0 | H101: =SUM(H98:H100) -> 0 | I101: =SUM(I98:I100) -> 0 | J101: =SUM(J98:J100) -> 0 | L101: =SUM(L98:L106) -> 0
A102: =A90 -> 1 | B102: =B90 -> 3 | C102: Обед
D103: закуска | E103: Салат "Витаминный" ( до марта ) /Огурцы свежие порционно с маслом ( после 1 марта ) | F103: 60 | G103: 1.16 | H103: 6.02 | I103: 5.80 | J103: 82.29 | K103: 49/71
D104: 1 блюдо | E104: Рассольник Ленинградский на мкб со сметаной | F104: 250 | G104: 7.0 | H104: 8.2 | I104: 17.30 | J104: 171.3 | K104: 96
D105: 2 блюдо | E105: Плов из говядины | F105: 200 | G105: 14.6 | H105: 13.5 | I105: 40.2 | J105: 340.7 | K105: 265
D106: гарнир
D107: 3 блюдо | E107: Кисель | F107: 200 | G107: 0.0 | H107: 0.0 | I107: 20.9 | J107: 83.9 | K107: 359
D108: хлеб бел. | E108: Хлеб пшеничный | F108: 40 | G108: 3 | H108: 1 | I108: 19 | J108: 100
D109: хлеб черн. | E109: Хлеб ржано-пшеничный | F109: 20 | G109: 1 | H109: 0 | I109: 8 | J109: 40
D111: итого | F111: =SUM(F102:F110) -> 770 | G111: =SUM(G102:G110) -> 27.36 | H111: =SUM(H102:H110) -> 29.02 | I111: =SUM(I102:I110) -> 111.6 | J111: =SUM(J102:J110) -> 817.89 | L111: 91
A112: =A90 -> 1 | B112: =B90 -> 3 | C112: Полдник | D112: булочное
D113: напиток
D116: итого | F116: =SUM(F112:F115) -> 0 | G116: =SUM(G112:G115) -> 0 | H116: =SUM(H112:H115) -> 0 | I116: =SUM(I112:I115) -> 0 | J116: =SUM(J112:J115) -> 0
A117: =A90 -> 1 | B117: =B90 -> 3 | C117: Ужин | D117: гор.блюдо
D118: гарнир
D119: напиток
D120: хлеб
D123: итого | F123: =SUM(F117:F122) -> 0 | G123: =SUM(G117:G122) -> 0 | H123: =SUM(H117:H122) -> 0 | I123: =SUM(I117:I122) -> 0 | J123: =SUM(J117:J122) -> 0 | L123: =SUM(L117:L125) -> 0
A124: =A90 -> 1 | B124: =B90 -> 3 | C124: Ужин 2 | D124: кисломол.
D125: булочное
D126: напиток
D127: фрукты
D130: итого | F130: =SUM(F124:F129) -> 0 | G130: =SUM(G124:G129) -> 0 | H130: =SUM(H124:H129) -> 0 | I130: =SUM(I124:I129) -> 0 | J130: =SUM(J124:J129) -> 0 | L130: =SUM(L124:L132) -> 0
A131: =A90 -> 1 | B131: =B90 -> 3 | C131: Итого за день: | F131: =F97+F101+F111+F116+F123+F130 -> 1340 | G131: =G97+G101+G111+G116+G123+G130 -> 47.06 | H131: =H97+H101+H111+H116+H123+H130 -> 49.71 | I131: =I97+I101+I111+I116+I123+I130 -> 192.61 | J131: =J97+J101+J111+J116+J123+J130 -> 1406.94 | L131: =SUM(L97,L111,L116) -> 160.43
A132: 1 | B132: 4 | C132: Завтрак | D132: гор.блюдо | E132: Каша молочная геркулесовая со сливочным маслом | F132: 215 | G132: 7.30 | H132: 10.39 | I132: 26.70 | J132: 230 | K132: 173
D133: гор.напиток | E133: Чай с сахаром | F133: 200 | G133: 0.20 | H133: 0.05 | I133: 10.00 | J133: 41 | K133: 376
D134: хлеб | E134: Хлеб пшеничный | F134: 30 | G134: 3 | H134: 1 | I134: 14 | J134: 75
D135: фрукт | E135: фрукт | F135: 100 | G135: 1 | H135: 1 | I135: 10 | J135: 50 | K135: 338
D136: выпечка | E136: Перемяч с мясом печеный | F136: 60 | G136: 8 | H136: 9 | I136: 27 | J136: 217 | K136: 406
D139: итого | F139: =SUM(F132:F138) -> 605 | G139: =SUM(G132:G138) -> 19.31 | H139: =SUM(H132:H138) -> 20.71 | I139: =SUM(I132:I138) -> 87.43 | J139: =SUM(J132:J138) -> 613.35 | L139: 69.43
A140: =A132 -> 1 | B140: =B132 -> 4 | C140: Завтрак 2 | D140: фрукты
D143: итого | F143: =SUM(F140:F142) -> 0 | G143: =SUM(G140:G142) -> 0 | H143: =SUM(H140:H142) -> 0 | I143: =SUM(I140:I142) -> 0 | J143: =SUM(J140:J142) -> 0 | L143: =SUM(L140:L148) -> 0
A144: =A132 -> 1 | B144: =B132 -> 4 | C144: Обед | D144: закуска | E144: Салат картофельный с солеными огурцами | F144: 60 | G144: 1.1 | H144: 5.7 | I144: 5.1 | J144: 76.2 | K144: 42
D145: 1 блюдо | E145: Суп картофельный с бобовыми на мкб с гренками из пшеничного хлеба | F145: 250 | G145: 7.0 | H145: 3.4 | I145: 24.5 | J145: 156.5 | K145: 102
D146: 2 блюдо | E146: Макароны отварные со сливочным маслом/Котлета из птицы с соусом | F146: 250 | G146: =5.47+9.9 -> 15.4 | H146: =6.37+12.11 -> 18.5 | I146: =34.34+6.58 -> 40.9 | J146: =216.57+174.91 -> 391.5 | K146: 203/294
D147: гарнир
D148: 3 блюдо | E148: Компот из свежих плодов | F148: 200 | G148: 0 | H148: 0 | I148: 19 | J148: 77 | K148: 342
D149: хлеб бел. | E149: Хлеб пшеничный | F149: 30 | G149: 2.6 | H149: 0.8 | I149: 14.4 | J149: 74.7
D150: хлеб черн. | E150: Хлеб ржано-пшеничный | F150: 20 | G150: 1.3 | H150: 0.2 | I150: 8.2 | J150: 40.1
D153: итого | F153: =SUM(F144:F152) -> 810 | G153: =SUM(G144:G152) -> 27.55 | H153: =SUM(H144:H152) -> 28.78 | I153: =SUM(I144:I152) -> 112.31 | J153: =SUM(J144:J152) -> 815.77 | L153: 91
A154: =A132 -> 1 | B154: =B132 -> 4 | C154: Полдник | D154: булочное
D155: напиток
D158: итого | F158: =SUM(F154:F157) -> 0 | G158: =SUM(G154:G157) -> 0 | H158: =SUM(H154:H157) -> 0 | I158: =SUM(I154:I157) -> 0 | J158: =SUM(J154:J157) -> 0
A159: =A132 -> 1 | B159: =B132 -> 4 | C159: Ужин | D159: гор.блюдо
D160: гарнир
D161: напиток
D162: хлеб
D165: итого | F165: =SUM(F159:F164) -> 0 | G165: =SUM(G159:G164) -> 0 | H165: =SUM(H159:H164) -> 0 | I165: =SUM(I159:I164) -> 0 | J165: =SUM(J159:J164) -> 0 | L165: =SUM(L159:L167) -> 0
A166: =A132 -> 1 | B166: =B132 -> 4 | C166: Ужин 2 | D166: кисломол.
D167: булочное
D168: напиток
D169: фрукты
D172: итого | F172: =SUM(F166:F171) -> 0 | G172: =SUM(G166:G171) -> 0 | H172: =SUM(H166:H171) -> 0 | I172: =SUM(I166:I171) -> 0 | J172: =SUM(J166:J171) -> 0 | L172: =SUM(L166:L174) -> 0
A173: =A132 -> 1 | B173: =B132 -> 4 | C173: Итого за день: | F173: =F139+F143+F153+F158+F165+F172 -> 1415 | G173: =G139+G143+G153+G158+G165+G172 -> 46.86 | H173: =H139+H143+H153+H158+H165+H172 -> 49.49 | I173: =I139+I143+I153+I158+I165+I172 -> 199.74 | J173: =J139+J143+J153+J158+J165+J172 -> 1429.12 | L173: =SUM(L139,L153,L158) -> 160.43
A174: 1 | B174: 5 | C174: Завтрак | D174: гор.блюдо | E174: рис отварной/котлета из говядины с соусом | F174: 250 | G174: =3.7+10.1 -> 14 | H174: =6.3+12.6 -> 19 | I174: =37.2+11.8 -> 49 | J174: =220.6+201 -> 422 | K174: 304/268
D175: гор.напиток | E175: Чай с сахаром и лимоном | F175: 200 | G175: 0 | H175: 0 | I175: 10 | J175: 41 | K175: 377
D176: хлеб | E176: Хлеб пшеничный ,хлеб ржан-пшеничный | F176: =30+20 -> 50 | G176: =1.32+2.5 -> 4 | H176: =0.81+0.22 -> 1 | I176: =8.2+9.4 -> 18 | J176: =40.06+54.89 -> 95
D177: гарнир
D178: фрукт | E178: фрукт | F178: 100 | G178: 1.1 | H178: 0.76 | I178: 9.8 | J178: 50.44 | K178: 338
D181: итого | F181: =SUM(F174:F180) -> 600 | G181: =SUM(G174:G180) -> 18.76 | H181: =SUM(H174:H180) -> 20.695 | I181: =SUM(I174:I180) -> 86.5 | J181: =SUM(J174:J180) -> 607.69 | L181: 69.43
A182: =A174 -> 1 | B182: =B174 -> 5 | C182: Завтрак 2 | D182: фрукты
D185: итого | F185: =SUM(F182:F184) -> 0 | G185: =SUM(G182:G184) -> 0 | H185: =SUM(H182:H184) -> 0 | I185: =SUM(I182:I184) -> 0 | J185: =SUM(J182:J184) -> 0 | L185: =SUM(L182:L190) -> 0
A186: =A174 -> 1 | B186: =B174 -> 5 | C186: Обед | D186: закуска | E186: Салат из отварной свеклы | F186: 60 | G186: 1 | H186: 6 | I186: 5 | J186: 78 | K186: 52
D187: 1 блюдо | E187: Суп с макаронными издельями с курицей со сметаной | F187: 250 | G187: 7 | H187: 6 | I187: 23 | J187: 176 | K187: 112
D188: 2 блюдо | E188: Рагу овощное с говядиной | F188: 210 | G188: 15.9 | H188: 12.8 | I188: 51.4 | J188: 384.4 | K188: 263
D189: гарнир
D190: напиток | E190: Компот из сухофруктов | F190: 200 | G190: 0 | H190: 0 | I190: 13 | J190: 51 | K190: 348
D191: хлеб бел. | E191: Хлеб пшеничный | F191: 40 | G191: 3 | H191: 1 | I191: 19 | J191: 100
D192: хлеб черн. | E192: Хлеб ржано-пшеничный | F192: 20 | G192: 1 | H192: 0 | I192: 8 | J192: 40
D195: итого | F195: =SUM(F186:F194) -> 780 | G195: =SUM(G186:G194) -> 28.28 | H195: =SUM(H186:H194) -> 26.48 | I195: =SUM(I186:I194) -> 119.27 | J195: =SUM(J186:J194) -> 828.52 | L195: 91
A196: =A174 -> 1 | B196: =B174 -> 5 | C196: Полдник | D196: гор.блюдо
D197: напиток
D198: хлеб
D200: итого | F200: =SUM(F196:F199) -> 0 | G200: =SUM(G196:G199) -> 0 | H200: =SUM(H196:H199) -> 0 | I200: =SUM(I196:I199) -> 0 | J200: =SUM(J196:J199) -> 0
A201: =A174 -> 1 | B201: =B174 -> 5 | C201: Ужин | D201: гор.блюдо
D202: гарнир
D203: напиток
D204: хлеб
D207: итого | F207: =SUM(F201:F206) -> 0 | G207: =SUM(G201:G206) -> 0 | H207: =SUM(H201:H206) -> 0 | I207: =SUM(I201:I206) -> 0 | J207: =SUM(J201:J206) -> 0 | L207: =SUM(L201:L209) -> 0
A208: =A174 -> 1 | B208: =B174 -> 5 | C208: Ужин 2 | D208: кисломол.
D209: булочное
D210: напиток
D211: фрукты
D214: итого | F214: =SUM(F208:F213) -> 0 | G214: =SUM(G208:G213) -> 0 | H214: =SUM(H208:H213) -> 0 | I214: =SUM(I208:I213) -> 0 | J214: =SUM(J208:J213) -> 0 | L214: =SUM(L208:L216) -> 0
A215: =A174 -> 1 | B215: =B174 -> 5 | C215: Итого за день: | F215: =F181+F185+F195+F200+F207+F214 -> 1380 | G215: =G181+G185+G195+G200+G207+G214 -> 47.04 | H215: =H181+H185+H195+H200+H207+H214 -> 47.175 | I215: =I181+I185+I195+I200+I207+I214 -> 205.77 | J215: =J181+J185+J195+J200+J207+J214 -> 1436.21 | L215: =SUM(L181,L195,L200) -> 160.43
A216: 1 | B216: 6 | C216: Завтрак | D216: гор.блюдо | E216: Картофельное пюре/Рыба, запечёная в сметанном соусе | F216: 270 | G216: =3.8+11.8 -> 16 | H216: =6.5+7.03 -> 14 | I216: =34.8+10.9 -> 46 | J216: =212.9+154.07 -> 367 | K216: 312/232
D217: гор.напиток | E217: Чай с сахаром и яблоками | F217: 200 | G217: 0 | H217: 0 | I217: 11 | J217: 46 | K217: 377
D218: хлеб | E218: Хлеб пшеничный ,хлеб ржан-пшеничный | F218: =20+20 -> 40 | G218: =1.64+1.32 -> 3 | H218: =0.54+0.22 -> 1 | I218: =8.2+9.6 -> 18 | J218: =49.82+40.06 -> 90
D219: кондитерка | E219: Кондитерское изделие | F219: 40 | G219: 1 | H219: 6 | I219: 13 | J219: 113 | K219: 452
D220: гарнир
D223: итого | F223: =SUM(F216:F222) -> 550 | G223: =SUM(G216:G222) -> 20.2 | H223: =SUM(H216:H222) -> 20.42 | I223: =SUM(I216:I222) -> 87.8 | J223: =SUM(J216:J222) -> 615.78 | L223: 69.43
A224: =A216 -> 1 | B224: =B216 -> 6 | C224: Завтрак 2 | D224: фрукты
D227: итого | F227: =SUM(F224:F226) -> 0 | G227: =SUM(G224:G226) -> 0 | H227: =SUM(H224:H226) -> 0 | I227: =SUM(I224:I226) -> 0 | J227: =SUM(J224:J226) -> 0 | L227: =SUM(L224:L232) -> 0
A228: =A216 -> 1 | B228: =B216 -> 6 | C228: Обед | D228: закуска | E228: Огурцы солёные | F228: 60 | G228: 0 | H228: 0 | I228: 1 | J228: 4 | K228: 70
D229: 1 блюдо | E229: Щи из свежей капусты с картофелем на мкб со сметаной | F229: 250 | G229: 7 | H229: 8 | I229: 9 | J229: 135 | K229: 88
D230: 2 блюдо | E230: Каша пшеничная рассыпчатая/Птица, тушеная в соусе с овощами | F230: 260 | G230: =6.9+10.29 -> 17 | H230: =5.8+13.2 -> 19 | I230: =37.9+20.2 -> 58 | J230: =232.3+240.76 -> 473 | K230: 171/288
D231: гарнир
D232: 3 блюдо | E232: кисель | F232: 200 | G232: 0 | H232: 0 | I232: 21 | J232: 84 | K232: 359
D233: хлеб бел. | E233: Хлеб пшеничный | F233: 30 | G233: 3 | H233: 1 | I233: 14 | J233: 75
D234: хлеб черн. | E234: Хлеб ржано-пшеничный | F234: 20 | G234: 1 | H234: 0 | I234: 8 | J234: 40
D237: итого | F237: =SUM(F228:F236) -> 820 | G237: =SUM(G228:G236) -> 27.93 | H237: =SUM(H228:H236) -> 28.07 | I237: =SUM(I228:I236) -> 111.58 | J237: =SUM(J228:J236) -> 811.51 | L237: 69.43
A238: =A216 -> 1 | B238: =B216 -> 6 | C238: Полдник | D238: булочное
D239: напиток
D242: итого | F242: =SUM(F238:F241) -> 0 | G242: =SUM(G238:G241) -> 0 | H242: =SUM(H238:H241) -> 0 | I242: =SUM(I238:I241) -> 0 | J242: =SUM(J238:J241) -> 0
A243: =A216 -> 1 | B243: =B216 -> 6 | C243: Ужин | D243: гор.блюдо
D244: гарнир
D245: напиток
D246: хлеб
D249: итого | F249: =SUM(F243:F248) -> 0 | G249: =SUM(G243:G248) -> 0 | H249: =SUM(H243:H248) -> 0 | I249: =SUM(I243:I248) -> 0 | J249: =SUM(J243:J248) -> 0 | L249: =SUM(L243:L251) -> 0
A250: =A216 -> 1 | B250: =B216 -> 6 | C250: Ужин 2 | D250: кисломол.
D251: булочное
D252: напиток
D253: фрукты
D256: итого | F256: =SUM(F250:F255) -> 0 | G256: =SUM(G250:G255) -> 0 | H256: =SUM(H250:H255) -> 0 | I256: =SUM(I250:I255) -> 0 | J256: =SUM(J250:J255) -> 0 | L256: =SUM(L250:L258) -> 0
A257: =A216 -> 1 | B257: =B216 -> 6 | C257: Итого за день: | F257: =F223+F227+F237+F242+F249+F256 -> 1370 | G257: =G223+G227+G237+G242+G249+G256 -> 48.13 | H257: =H223+H227+H237+H242+H249+H256 -> 48.49 | I257: =I223+I227+I237+I242+I249+I256 -> 199.38 | J257: =J223+J227+J237+J242+J249+J256 -> 1427.29 | L257: =SUM(L223,L237,L242) -> 138.86
A258: 2 | B258: 1 | C258: Завтрак | D258: гор.блюдо | E258: Каша молочная" Дружба" со сливочным маслом | F258: 215 | G258: 8 | H258: 9 | I258: 38 | J258: 260 | K258: 173
D259: гор.напиток | E259: Чай с сахаром | F259: 200 | G259: 0 | H259: 0 | I259: 10 | J259: 41 | K259: 376
D260: хлеб | E260: Хлеб пшеничный ,хлеб ржан-пшеничный | F260: =20+20 -> 40 | G260: =1.64+1.32 -> 3 | H260: =0.54+0.22 -> 1 | I260: =9.6+8.2 -> 18 | J260: =49.82+40.06 -> 90
D261: выпечка | E261: Пирожок с повидлом | F261: 60 | G261: 5 | H261: 8 | I261: 20 | J261: 173 | K261: 418
D262: сладкое | E262: Сыр | F262: 15 | G262: 4 | H262: 3 | J262: 39 | K262: 15
D263: фрукты
D265: итого | F265: =SUM(F258:F264) -> 530 | G265: =SUM(G258:G264) -> 20.16 | H265: =SUM(H258:H264) -> 19.83 | I265: =SUM(I258:I264) -> 86.01 | J265: =SUM(J258:J264) -> 603.2 | L265: 69.43
A266: =A258 -> 2 | B266: =B258 -> 1 | C266: Завтрак 2 | D266: фрукты
D269: итого | F269: =SUM(F266:F268) -> 0 | G269: =SUM(G266:G268) -> 0 | H269: =SUM(H266:H268) -> 0 | I269: =SUM(I266:I268) -> 0 | J269: =SUM(J266:J268) -> 0 | L269: =SUM(L266:L274) -> 0
A270: =A258 -> 2 | B270: =B258 -> 1 | C270: Обед | D270: закуска | E270: Винегрет | F270: 60 | G270: 1 | H270: 6 | I270: 6 | J270: 82 | K270: 67
D271: 1 блюдо | E271: Суп картофельный с крупой (пшенный) с курицей и сметаной | F271: 250 | G271: 9 | H271: 10 | I271: 23 | J271: 223 | K271: 101
... 230 more rows
